bitfinex-derivatives/quotes_ETHF0:USTF0_20250308
["timestamp","ask_amount","ask_price","bid_price","bid_amount"]
[1741477381227,2.8744225,2197.6,2197.3,3.21461989]
[1741477382326,3.2078,2197.4,2196.7,3.2078]
[1741477382515,3.2078,2197.4,2195.5,2.985]
[1741477382516,3.2078,2196.9,2196.3,3.2078]
[1741477382718,2.081,2196.8,2196.3,3.2078]
[1741477383523,2.08781989,2196.8,2196.3,3.21461989]
[1741477385023,2.88080651,2196.8,2196.3,3.21461989]
[1741477385623,3.52570651,2196.8,2196.3,3.21461989]
[1741477386016,1.44470651,2196.8,2196.3,3.76107989]
[1741477386218,2.085,2196.7,2196.3,3.21461989]
[1741477387527,1.44457164,2196.8,2196.3,3.21461989]
[1741477387826,0.00681989,2196.8,2196.3,3.21461989]
[1741477388029,0.00681989,2196.8,2196.3,3.76107989]
[1741477388222,0.00681989,2196.8,2196.3,3.21461989]
[1741477389233,0.00681989,2196.8,2196.3,3.76107989]
[1741477389532,0.00681989,2196.8,2196.3,3.21461989]
[1741477390324,0.00681989,2196.8,2196.3,3.76107989]
[1741477390524,0.00681989,2196.8,2196.3,3.21461989]
[1741477390820,0.00681989,2196.8,2196.3,3.76106989]
[1741477391730,0.00681989,2196.8,2196.4,0.54644]
[1741477391929,0.00681989,2196.8,2196.3,3.21461989]
[1741477392131,0.00681989,2196.8,2196.3,3.76105989]
[1741477392635,0.00681989,2196.8,2196.3,3.21461989]
[1741477392833,0.00681989,2196.8,2196.3,3.76107989]
[1741477393332,0.00681989,2196.8,2196.3,3.21461989]
[1741477394135,0.61631989,2196.8,2196.3,3.21461989]
[1741477394432,0.61631989,2196.8,2196.3,3.76107989]
[1741477394636,0.61631989,2196.8,2196.3,3.21461989]
[1741477397232,0.61631989,2196.8,2196.4,0.54643]
[1741477397535,0.61631989,2196.8,2196.3,3.76107989]
[1741477397737,0.61631989,2196.8,2196.3,3.21461989]
[1741477397932,0.61631989,2196.8,2196.4,0.54644]
[1741477398130,0.61631989,2196.8,2196.3,3.21461989]
[1741477398761,0.61631989,2196.8,2196.3,3.76106989]
[1741477399035,0.61631989,2196.8,2196.3,3.21461989]
[1741477400441,1.24651989,2196.8,2196.3,3.21461989]
[1741477401730,0.00681989,2196.8,2196.6,3.2078]
[1741477404143,0.00681989,2196.8,2196.7,0.54637]
[1741477406140,0.09102079,2197.3,2197.2,0.54624]
[1741477406545,0.09102079,2197.3,2197.2,1.13924]
[1741477406739,0.09102079,2197.3,2197.2,0.593]
[1741477406940,0.09102079,2197.3,2197.2,1.13924]
[1741477408543,0.09102079,2197.3,2197.2,0.593]
[1741477410547,0.09102079,2197.3,2197.1,3.2078]
[1741477410947,0.09102079,2197.3,2196.8,3.2078]
[1741477411140,3.2078,2196.9,2196.4,3.5715]
[1741477411346,3.2078,2196.9,2196.4,3.2078]
[1741477411850,4.63393483,2196.9,2196.4,3.2078]
[1741477412048,1.42613483,2196.8,2196.4,3.2078]
[1741477412751,1.42613483,2197.1,2196.4,3.2078]
[1741477413046,3.2078,2196.9,2196.4,3.2078]
[1741477413749,4.63393483,2196.9,2196.4,3.2078]
[1741477413949,1.42613483,2196.8,2196.4,3.2078]
[1741477414151,2.05153483,2196.8,2196.4,3.2078]
[1741477414951,2.64733483,2196.8,2196.4,3.2078]
[1741477415354,4.72233483,2196.8,2196.4,3.2078]
[1741477415546,1.42613483,2196.7,2196.4,3.2078]
[1741477415746,3.2078,2196.5,2196.3,0.00681989]
[1741477415946,2.075,2196.4,2196.3,0.00681989]
[1741477416151,3.50113483,2196.4,2196.3,0.00681989]
[1741477416350,7.50113483,2196.4,2195.4,5.2828]
[1741477416655,3.2078,2196.1,2195.4,5.2828]
[1741477416849,0.6212,2196.0,2195.4,5.2828]
[1741477417350,0.00681989,2195.9,2195.5,0.00681989]
[1741477418355,0.00681989,2195.9,2195.8,0.54659]
[1741477420251,0.00681989,2195.9,2195.8,4.54659]
[1741477420556,0.00681989,2195.9,2195.8,0.54659]
[1741477422655,0.00681989,2195.9,2195.8,2.61859]
[1741477424453,0.00681989,2195.9,2195.8,2.072]
[1741477424657,0.00681989,2195.9,2195.8,2.61859]
[1741477427759,0.00681989,2195.9,2195.8,2.072]
[1741477428155,0.00681989,2195.9,2195.8,2.61859]
[1741477429262,0.00681989,2195.9,2195.8,2.072]
[1741477429660,0.00681989,2195.9,2195.7,5.2698]
[1741477430252,0.00681989,2195.9,2195.7,3.2078]
[1741477432360,0.00681989,2195.9,2195.7,3.7544]
[1741477432966,0.00681989,2195.9,2195.7,3.75442]
[1741477435656,0.00681989,2195.9,2195.8,0.54659]
[1741477440575,0.5976,2196.2,2196.0,0.54652]
[1741477440776,0.5976,2196.2,2196.0,3.75432]
[1741477440970,0.09106224,2196.3,2196.1,0.54649]
[1741477441173,0.09106224,2196.3,2196.2,0.54649]
[1741477441770,0.06307208,2196.3,2196.2,0.54649]
[1741477442265,0.6106,2196.9,2196.1,0.54652]
[1741477442266,2.03631691,2196.9,2196.1,0.54652]
[1741477442466,0.6106,2196.9,2196.5,0.54641]
[1741477443067,0.6106,2196.9,2196.6,0.54639]
[1741477443267,0.6106,2196.9,2196.4,3.2078]
[1741477443565,0.6106,2196.9,2196.5,0.5464]
[1741477444574,0.6106,2196.9,2196.4,3.2078]
[1741477444877,0.6106,2196.9,2196.7,0.54635]
[1741477445875,0.63001989,2197.0,2196.8,0.54633]
[1741477446080,0.63001989,2197.0,2196.9,0.54632]
[1741477446280,0.00681989,2197.0,2196.9,0.54632]
[1741477448577,0.00681989,2197.0,2196.7,3.21461989]
[1741477449175,0.00681989,2197.0,2196.9,0.54632]
[1741477450280,0.00681989,2197.0,2196.7,3.21461989]
[1741477450472,0.00681989,2197.0,2196.9,0.54632]
[1741477459785,0.6408,2197.4,2197.2,0.54622]
[1741477459985,0.6408,2197.4,2197.3,0.54622]
[1741477460287,1.41700181,2197.5,2197.4,0.54619]
[1741477460579,0.6241,2197.5,2197.4,3.75399]
[1741477461583,0.59671,2197.7,2197.5,0.54617]
[1741477461779,1.19051,2197.7,2197.5,0.54617]
[1741477462381,1.19051,2197.7,2197.5,0.89763481]
[1741477463384,1.19051,2197.7,2197.5,0.35146481]
[1741477463576,1.19051,2197.7,2197.6,0.54614]
[1741477463787,0.60061,2197.7,2197.6,0.54614]
[1741477463986,0.00681,2197.7,2197.6,0.54614]
[1741477470791,1.8417,2198.1,2198.0,0.54604]
[1741477472595,1.8417,2198.1,2197.8,0.00681989]
[1741477472800,1.8417,2198.1,2197.9,0.54606]
[1741477473100,1.8417,2198.1,2198.0,0.54604]
[1741477477008,0.75122322,2198.5,2198.4,0.54594]
[1741477477303,0.75122322,2198.5,2198.3,0.54594]
[1741477477499,1.36182322,2198.5,2198.3,0.54594]
[1741477478806,1.96282322,2198.5,2198.0,4.4478]
[1741477479006,1.2116,2198.5,2198.4,0.54594]
[1741477479308,1.2116,2198.5,2198.3,0.54595]
[1741477479703,1.2116,2198.5,2198.3,2.56696]
[1741477479911,1.2116,2198.5,2198.4,0.54594]
[1741477480506,1.2116,2198.5,2198.3,2.56695]
[1741477486414,1.2116,2198.5,2198.0,4.4478]
[1741477486606,1.2116,2198.5,2198.1,2.55901]
[1741477488410,1.2116,2198.5,2198.1,2.013]
[1741477488604,1.2116,2198.5,2198.1,2.559]
[1741477490411,1.2116,2198.5,2198.1,2.013]
[1741477490715,1.2116,2198.5,2198.1,2.559]
[1741477491115,1.2116,2198.5,2198.1,2.013]
[1741477492216,1.2116,2198.5,2198.2,0.54598]
[1741477496622,1.2116,2198.5,2198.3,0.54595]
[1741477496820,0.601,2198.5,2198.4,0.54594]
[1741477497016,0.601,2198.5,2198.3,3.75375]
[1741477497215,0.601,2198.5,2198.3,3.2078]
[1741477497721,0.601,2198.5,2198.3,3.75376]
[1741477498125,0.601,2198.5,2198.3,3.2078]
[1741477498422,0.6299,2198.4,2198.3,3.2078]
[1741477503524,0.601,2198.5,2198.3,3.75377]
[1741477503924,0.6311,2198.6,2198.4,0.54594]
[1741477504118,0.07105482,2198.6,2198.4,1.18604]
[1741477504921,0.07105482,2198.6,2198.5,0.54592]
[1741477505115,0.07105482,2198.6,2198.4,1.18603]
[1741477506226,0.07105482,2198.6,2198.5,0.54592]
[1741477506831,0.07105482,2198.6,2198.4,1.18603]
[1741477508318,0.07105482,2198.6,2198.5,0.54592]
[1741477508923,0.07105482,2198.6,2198.4,1.18604]
[1741477510429,0.07105482,2198.6,2198.4,0.6401]
[1741477510623,0.07105482,2198.6,2198.5,0.54592]
[1741477510825,1.17047766,2199.0,2198.5,1.99]
[1741477511130,1.17047766,2199.0,2198.7,0.54586]
[1741477511528,1.17047766,2199.0,2198.6,0.54587]
[1741477512122,1.17047766,2199.0,2198.5,1.99]
[1741477512326,1.17047766,2199.0,2198.5,2.53592]
[1741477513626,1.17047766,2199.0,2198.6,0.54589]
[1741477514837,1.17047766,2199.0,2198.5,2.53591]
[1741477516135,1.2331,2198.9,2198.6,0.54588]
[1741477516334,1.2331,2198.9,2198.6,3.75368]
[1741477520436,1.2331,2198.9,2198.6,3.2078]
[1741477520641,1.2331,2198.9,2198.6,3.75368]
[1741477521033,1.2331,2198.9,2198.7,0.54585]
[1741477522035,1.2331,2198.9,2198.7,1.17475]
[1741477522741,1.2331,2198.9,2198.7,0.6289]
[1741477522942,1.2331,2198.9,2198.7,1.17476]
[1741477523442,3.2078,2198.8,2198.1,0.546]
[1741477523744,3.2078,2198.3,2197.8,2.53890989]
[1741477524044,1.8602,2198.2,2197.9,0.54607]
[1741477524245,3.03067766,2198.2,2197.9,0.54607]
[1741477524548,3.03067766,2198.2,2197.8,2.53889989]
[1741477524745,3.03067766,2198.2,2197.8,1.99281989]
[1741477525048,3.03067766,2198.2,2197.8,2.53889989]
[1741477525846,3.03067766,2198.2,2197.8,1.99281989]
[1741477526348,3.03067766,2198.2,2197.8,2.53889989]
[1741477526543,3.03067766,2198.2,2197.8,0.00681989]
[1741477531747,1.984,2198.1,2197.8,0.00681989]
[1741477531948,3.2078,2198.0,2197.8,0.00681989]
[1741477532248,4.37827766,2198.0,2197.8,0.00681989]
[1741477532450,1.17047766,2197.9,2197.8,0.00681989]
[1741477533650,3.15447766,2198.1,2197.8,0.00681989]
[1741477539747,1.17047766,2198.1,2197.8,0.00681989]
[1741477540051,3.03067766,2198.2,2197.8,0.00681989]
[1741477540252,2.39825876,2198.2,2197.8,0.00681989]
[1741477542454,3.03066618,2198.2,2197.8,0.00681989]
[1741477543555,3.2078,2197.9,2197.8,0.00681989]
[1741477544160,0.53805876,2197.9,2197.8,0.00681989]
[1741477544355,1.17085973,2198.1,2197.8,0.00681989]
[1741477546362,3.2078,2197.9,2197.8,0.00681989]
[1741477546562,3.2078,2197.9,2197.3,0.36154664]
[1741477546767,0.6223,2197.8,2197.2,3.75404]
[1741477546959,1.2236,2197.7,2197.2,3.2078]
[1741477547563,1.2236,2197.7,2197.2,3.75404]
[1741477547765,1.23041989,2197.7,2197.2,3.76085989]
[1741477548064,1.23041989,2197.7,2197.2,3.21461989]
[1741477548776,3.2078,2197.6,2197.2,3.56330363]
[1741477548964,1.985,2197.5,2197.2,0.00681989]
[1741477549169,3.15585973,2197.5,2197.2,0.00681989]
[1741477549365,3.2078,2197.3,2197.2,0.00681989]
[1741477549759,4.37865973,2197.3,2197.2,0.00681989]
[1741477550763,8.37865973,2197.3,2197.2,9.89e-06]
[1741477550967,8.37865973,2197.3,2196.6,1.2577]
[1741477551172,3.2078,2197.0,2196.6,1.2577]
[1741477551469,0.6282,2196.9,2196.6,1.2577]
[1741477551869,1.79905973,2196.9,2196.6,1.2577]
[1741477552376,1.79983674,2196.9,2196.6,1.2577]
[1741477553377,0.53805876,2196.9,2196.6,1.2577]
[1741477553569,1.79155626,2197.2,2196.7,0.54635]
[1741477554171,2.38835626,2197.2,2196.8,3.2078]
[1741477554372,0.53805876,2197.2,2196.8,3.75413]
[1741477554576,4.47056097,2197.3,2196.8,3.2078]
[1741477554774,1.17174018,2197.2,2196.8,3.2078]
[1741477557280,1.17174018,2197.2,2196.6,1.2577]
[1741477557578,3.2078,2196.9,2196.6,1.2577]
[1741477557978,1.17174018,2197.0,2196.6,1.2577]
[1741477558180,0.588,2196.9,2196.6,0.6194]
[1741477561477,3.7958,2196.9,2196.6,0.6194]
[1741477561684,0.53805876,2196.8,2196.6,0.6194]
[1741477564987,0.588,2196.9,2196.6,0.6194]
[1741477570291,3.7958,2196.9,2196.6,0.6194]
[1741477570587,0.53805876,2196.8,2196.6,0.6194]
[1741477571286,0.588,2196.9,2196.6,0.6194]
[1741477577688,3.7958,2196.9,2196.6,0.6194]
[1741477577888,1.17208272,2196.8,2196.6,0.6194]
[1741477580689,1.17208272,2196.8,2196.5,0.35784339]
[1741477580889,1.17208272,2196.8,2196.5,0.00681989]
[1741477581395,1.17208272,2196.8,2196.5,0.00277733]
[1741477581893,1.17208272,2196.8,2196.5,0.00097826]
[1741477583495,1.17208272,2196.8,2196.5,0.61677826]
[1741477585594,1.17208272,2196.8,2196.5,0.00097826]
[1741477591704,1.17208272,2196.8,2196.5,0.00017826]
[1741477592006,3.2078,2196.6,2196.2,1.2443]
[1741477592307,1.2049,2196.5,2196.2,1.2443]
[1741477592604,2.99398272,2196.5,2196.2,1.2443]
[1741477592998,2.99398272,2196.5,2196.1,0.00681989]
[1741477593607,2.99398272,2196.5,2196.1,0.36873441]
[1741477593808,2.99398272,2196.5,2196.1,0.00681989]
[1741477594505,3.2078,2196.3,2196.1,0.00681989]
[1741477594906,4.37988272,2196.3,2196.1,0.00681989]
[1741477595107,1.17208272,2196.2,2196.1,0.00681989]
[1741477596202,2.99398272,2196.5,2196.1,0.00681989]
[1741477597211,2.99398272,2196.5,2196.1,0.59861989]
[1741477597805,2.99398272,2196.5,2196.3,0.54646]
[1741477598008,1.8219,2196.5,2196.2,0.54649]
[1741477598311,1.17890261,2196.6,2196.3,0.59]
[1741477598608,0.00681989,2196.6,2196.4,0.54643]
[1741477598804,0.00681989,2196.6,2196.3,0.59]
[1741477598805,0.00681989,2196.6,2196.5,1.13822]
[1741477599211,0.00681989,2196.6,2196.5,0.5918]
[1741477600010,0.00681989,2196.6,2196.5,1.13822]
[1741477600212,0.00681989,2196.6,2196.5,0.5918]
[1741477600714,0.00681989,2196.6,2196.5,1.13822]
[1741477600910,0.5931,2197.0,2196.7,0.54637]
[1741477601113,0.5931,2197.0,2196.8,0.6018]
[1741477601114,0.0381,2197.0,2196.8,0.6018]
[1741477604232,0.0381,2197.0,2196.6,3.2078]
[1741477607521,0.0381,2197.0,2196.7,0.6139]
[1741477608426,0.00681989,2197.1,2196.7,0.6139]
[1741477609327,0.00681989,2197.1,2196.7,1.16026]
[1741477609718,0.00681989,2197.1,2196.7,0.6139]
[1741477610329,0.00681989,2197.1,2196.7,1.16027]
[1741477610529,0.00681989,2197.1,2196.7,0.6139]
[1741477610827,0.00681989,2197.1,2196.7,1.16026]
[1741477611027,0.74460113,2197.1,2196.7,1.16026]
[1741477611232,0.74460113,2197.1,2196.7,0.6139]
[1741477611421,0.00681989,2197.1,2196.8,0.54633]
[1741477611621,0.00681989,2197.1,2196.9,0.6402]
[1741477613133,0.09102079,2197.3,2196.9,3.848]
[1741477613340,0.09102079,2197.3,2197.2,0.54624]
[1741477613527,0.09102079,2197.3,2197.0,0.6036]
[1741477613528,0.09102079,2197.3,2197.1,0.54625]
[1741477613728,0.09102079,2197.3,2197.1,0.5899]
[1741477616137,0.70082079,2197.3,2196.9,3.848]
[1741477616335,1.90222079,2197.3,2196.9,4.4379]
[1741477617526,1.90222079,2197.3,2196.9,1.2301]
[1741477617723,3.2078,2197.2,2196.9,1.2301]
[1741477617932,3.94558124,2197.2,2196.9,1.2301]
[1741477618835,3.94558124,2197.2,2196.5,3.2078]
[1741477619040,4.03660618,2197.2,2196.5,3.2078]
[1741477619535,4.03660618,2197.2,2196.6,0.54639]
[1741477619730,4.03660618,2197.2,2196.7,0.6007]
[1741477619935,4.03660618,2197.2,2196.7,1.2326]
[1741477620323,4.03660618,2197.2,2196.7,1.77896]
[1741477620529,4.03660618,2197.2,2196.8,0.54633]
[1741477621043,4.03660618,2197.2,2196.7,1.2326]
[1741477621540,4.03660618,2197.2,2196.7,1.77896]
[1741477621834,0.82880618,2197.2,2196.9,0.54629]
[1741477622134,0.09102494,2197.2,2196.9,0.54629]
[1741477622537,0.09102494,2197.2,2196.8,3.2078]
[1741477622752,0.09102494,2197.2,2196.8,3.75413]
[1741477622940,0.09102494,2197.2,2196.8,3.2078]
[1741477623135,0.6295,2197.1,2196.7,3.2176]
[1741477623537,0.6295,2197.1,2196.7,3.76396]
[1741477623742,0.6295,2197.1,2196.7,3.2176]
[1741477623933,2.58498124,2197.1,2196.8,0.54634]
[1741477624136,0.73778124,2197.1,2196.9,0.54631]
[1741477624538,0.09102494,2197.2,2196.7,3.2176]
[1741477624734,0.09102494,2197.2,2196.8,0.54632]
[1741477625337,0.09102494,2197.2,2196.7,3.2176]
[1741477625543,0.09102494,2197.2,2196.7,3.76396]
[1741477626837,0.09102494,2197.2,2196.8,0.54634]
[1741477627038,0.09102494,2197.2,2196.7,3.2176]
[1741477627238,0.09102494,2197.2,2196.7,3.76396]
[1741477628635,3.29882494,2197.2,2196.7,1.2326]
[1741477628837,0.5875,2197.1,2196.7,1.2326]
[1741477629032,3.2078,2196.8,2196.0,3.56699229]
[1741477629338,3.2078,2196.5,2196.1,1.25691989]
[1741477631145,3.2078,2196.2,2196.1,0.00681989]
[1741477632150,4.55368124,2196.2,2196.1,0.00681989]
[1741477632342,1.34588124,2196.2,2196.1,0.00681989]
[1741477632647,0.73778124,2196.4,2196.1,0.00681989]
[1741477632843,0.73778124,2196.5,2196.1,1.89381989]
[1741477633143,1.34588124,2196.6,2196.1,2.44031989]
[1741477633340,0.6081,2196.6,2196.1,2.44031989]
[1741477633951,0.73778124,2196.8,2196.4,0.54643]
[1741477634146,0.73778124,2196.8,2196.5,0.6333]
[1741477634447,0.73778124,2196.8,2196.6,0.6494]
[1741477634841,0.73778124,2196.8,2196.5,0.6333]
[1741477636241,1.29473322,2197.0,2196.7,0.54636]
[1741477636242,0.82881446,2197.0,2196.7,0.54636]
[1741477636441,0.09103322,2197.0,2196.8,0.6494]
[1741477637946,0.09103322,2197.0,2196.8,1.19573]
[1741477638344,0.09103322,2197.0,2196.8,0.6494]
[1741477638850,0.09103322,2197.0,2196.8,1.19573]
[1741477639643,0.09103322,2197.0,2196.8,0.6494]
[1741477640550,0.09103322,2197.0,2196.8,1.19574]
[1741477641555,0.09103322,2197.0,2196.8,0.6494]
[1741477641744,0.09103322,2197.0,2196.8,1.19574]
[1741477641948,0.09103322,2197.0,2196.8,0.6494]
[1741477642249,0.09103322,2197.0,2196.9,0.54632]
[1741477642448,0.09103322,2197.0,2196.9,3.75412]
[1741477642946,0.00681989,2197.4,2197.2,0.54623]
[1741477643149,0.00681989,2197.4,2197.3,1.257]
[1741477644648,0.00681989,2197.4,2197.3,1.80322]
[1741477644851,0.00681989,2197.4,2197.3,1.257]
[1741477645047,0.00681989,2197.4,2197.3,1.80322]
[1741477645348,0.00681989,2197.4,2197.3,2.1712093]
[1741477647740,0.00681989,2197.4,2197.3,1.6249893]
[1741477649051,0.00681989,2197.4,2197.3,2.1712093]
[1741477649953,0.00681989,2197.4,2197.3,1.6249893]
[1741477651256,0.00681989,2197.4,2197.3,2.1712093]
[1741477656759,3.2078,2197.9,2197.7,0.54612]
[1741477656947,0.5931,2198.0,2197.7,0.54611]
[1741477657152,0.5931,2198.0,2197.8,0.6266]
[1741477657463,0.5931,2198.0,2197.6,0.54613]
[1741477657660,0.5931,2198.0,2197.6,1.17273]
[1741477657863,0.5931,2198.0,2197.6,1.17954989]
[1741477658350,0.5931,2198.0,2197.7,0.5461]
[1741477658548,0.5931,2198.0,2197.7,1.1349]
[1741477658750,0.5931,2198.0,2197.7,0.5888]
[1741477659158,0.5931,2198.0,2197.6,0.63341989]
[1741477660456,0.5931,2198.0,2197.6,1.17955989]
[1741477665258,0.5931,2198.0,2197.6,0.63341989]
[1741477665662,0.5931,2198.0,2197.6,1.17954989]
[1741477666067,0.5931,2198.0,2197.6,0.63341989]
[1741477666258,0.5931,2198.0,2197.7,0.54611]
[1741477666463,0.5931,2198.0,2197.6,1.17954989]
[1741477666763,0.5931,2198.0,2197.6,0.63341989]
[1741477666965,0.5931,2198.0,2197.6,1.17955989]
[1741477669263,0.5931,2198.0,2197.7,0.54611]
[1741477669560,1.37784295,2198.1,2197.8,0.54608]
[1741477669761,1.37784295,2198.1,2197.9,0.6205]
[1741477670069,1.37784295,2198.1,2197.9,1.16657]
[1741477670266,0.51852513,2198.2,2197.9,3.8283]
[1741477670466,0.51852513,2198.2,2198.0,1.15383]
[1741477673084,2.6126,2198.5,2198.1,0.54602]
[1741477673462,3.206,2198.5,2198.1,0.54602]
[1741477673765,3.206,2198.5,2198.0,1.75434]
[1741477673968,3.206,2198.5,2198.0,0.6078]
[1741477674165,3.206,2198.5,2198.0,1.15384]
[1741477676568,3.206,2198.5,2198.0,0.6078]
[1741477676866,3.2078,2198.3,2197.9,0.6205]
[1741477677270,0.6459,2198.2,2197.9,0.6205]
[1741477677569,1.2708,2198.1,2197.9,0.6205]
[1741477680781,1.2708,2198.1,2197.7,0.5461]
[1741477680983,1.2708,2198.1,2197.8,0.5893]
[1741477686786,1.2708,2198.1,2197.8,1.2411]
[1741477689185,1.2708,2198.1,2197.8,1.78718]
[1741477689686,1.36725801,2198.2,2197.8,1.78718]
[1741477689888,0.72135801,2198.2,2197.8,4.4489]
[1741477690185,1.2112,2198.4,2197.9,0.6346]
[1741477690581,1.2112,2198.4,2198.1,0.54602]
[1741477690782,1.2112,2198.4,2198.2,0.6152]
[1741477691187,3.2078,2198.3,2197.8,4.34318]
[1741477691389,3.92915801,2198.3,2197.8,4.34318]
[1741477691783,0.593,2198.2,2197.8,4.34318]
[1741477691984,1.31435801,2198.2,2197.8,4.34318]
[1741477692592,1.31435801,2198.2,2197.9,0.54606]
[1741477693109,1.31435801,2198.2,2197.8,4.34318]
[1741477693292,1.31435801,2198.2,2198.1,0.54602]
[1741477693293,0.72135801,2198.2,2198.1,0.54602]
[1741477693600,1.2112,2198.4,2198.1,0.54602]
[1741477693891,0.72135801,2198.5,2198.2,0.6401]
[1741477694091,0.72135801,2198.5,2198.2,1.2762]
[1741477695984,0.41355003,2198.8,2198.2,1.2762]
[1741477696193,3.2078,2198.9,2198.6,0.54588]
[1741477696489,3.2078,2198.9,2198.7,1.267]
[1741477696881,3.2078,2198.9,2198.5,0.54591]
[1741477697088,3.2078,2198.9,2198.5,1.82041]
[1741477701394,3.2078,2198.9,2198.6,0.54589]
[1741477702901,3.2078,2198.9,2198.5,1.2745]
[1741477703099,3.2078,2198.9,2198.5,1.8204]
[1741477704997,3.2078,2198.9,2198.5,1.2745]
[1741477705202,3.2078,2198.9,2198.2,1.983]
[1741477705403,3.2078,2198.9,2198.4,1.19013]
[1741477705590,3.2078,2198.9,2198.4,0.6442]
[1741477705795,3.2078,2198.9,2198.4,1.19013]
[1741477705994,3.92118999,2198.9,2198.5,0.54592]
[1741477706299,3.92118999,2198.9,2198.4,1.19013]
[1741477706701,3.92118999,2198.9,2198.5,0.54591]
[1741477706902,3.92118999,2198.9,2198.4,3.852]
[1741477707203,3.92118999,2198.9,2198.7,0.54586]
[1741477707591,2.82971151,2198.9,2198.6,0.6263]
[1741477707895,1.94828999,2199.0,2198.7,3.2078]
[1741477708097,1.2349,2199.0,2198.7,3.2078]
[1741477709804,3.2078,2198.8,2197.7,6.1928]
[1741477710004,0.6289,2198.7,2198.1,0.5993]
[1741477710208,0.6093,2198.6,2198.2,0.6317]
[1741477710499,1.2581,2198.6,2198.3,0.54597]
[1741477711004,1.2581,2198.6,2198.2,1.17768]
[1741477711700,1.2581,2198.6,2198.2,0.6317]
[1741477712503,1.2581,2198.6,2198.2,1.17768]
[1741477713403,1.2581,2198.6,2198.3,0.54596]
[1741477713605,1.2581,2198.6,2198.2,1.17768]
[1741477714597,1.2581,2198.6,2198.2,4.38548]
[1741477714799,1.2581,2198.6,2198.2,6.36848]
[1741477718503,1.2581,2198.6,2198.2,5.8225]
[1741477718694,1.2581,2198.6,2198.2,6.36849]
[1741477718899,1.2581,2198.6,2198.3,0.54597]
[1741477720802,1.2581,2198.6,2198.2,6.36848]
[1741477720999,1.2581,2198.6,2198.2,5.8225]
[1741477721205,1.2581,2198.6,2198.3,0.54597]
[1741477721506,1.2581,2198.6,2198.2,6.36848]
[1741477724098,1.2581,2198.6,2198.3,0.54596]
[1741477724299,1.2581,2198.6,2198.2,6.36848]
[1741477725110,1.2581,2198.6,2198.2,5.8225]
[1741477725298,1.2581,2198.6,2198.2,6.36849]
[1741477726210,1.2581,2198.6,2198.2,5.8225]
[1741477729212,1.2581,2198.6,2198.2,6.36849]
[1741477729616,1.2581,2198.6,2198.2,5.8225]
[1741477730513,1.2581,2198.6,2198.2,6.36849]
[1741477732715,1.2581,2198.6,2198.2,5.8225]
[1741477733016,1.2581,2198.6,2198.2,6.36849]
[1741477733207,0.71338999,2198.8,2198.5,3.2078]
[1741477733407,2.981,2199.1,2198.7,0.54585]
[1741477733607,1.8519,2199.3,2198.9,3.2078]
[1741477733807,1.8519,2199.3,2199.0,1.2698]
[1741477734007,1.8519,2199.3,2198.9,3.21461989]
[1741477734216,3.2078,2199.2,2198.7,1.2698]
[1741477734813,3.2078,2199.2,2198.6,5.1908]
[1741477735311,3.2078,2199.2,2198.6,3.2078]
[1741477735514,3.2078,2199.2,2198.7,0.00681989]
[1741477736215,3.2078,2199.2,2198.7,0.63751989]
[1741477737918,3.2078,2199.2,2198.8,0.5961]
[1741477738721,3.2078,2199.2,2198.8,0.96338973]
[1741477739624,3.2078,2199.2,2198.8,0.5961]
[1741477739815,3.2078,2199.2,2198.9,0.54581]
[1741477740121,1.85871989,2199.3,2198.8,1.51080427]
[1741477740523,1.85871989,2199.3,2198.9,0.54581]
[1741477740718,1.85871989,2199.3,2198.8,0.96497427]
[1741477741227,1.85871989,2199.3,2198.9,0.54582]
[1741477741425,1.85871989,2199.3,2198.8,1.51080427]
[1741477741821,1.85871989,2199.3,2198.9,0.54582]
[1741477742017,3.2078,2199.6,2198.9,3.2078]
[1741477742315,2.981,2200.1,2198.8,2.32959427]
[1741477742316,6.8493,2200.1,2199.7,0.54561]
[1741477742517,4.8663,2200.1,2199.5,3.2078]
[1741477742720,4.8663,2200.1,2199.7,0.54561]
[1741477742919,4.8663,2200.1,2199.8,3.2078]
[1741477743919,0.6394,2200.1,2199.9,0.54557]
[1741477744214,0.6237,2200.3,2199.9,0.54555]
[1741477744415,0.6237,2200.3,2200.0,0.6263]
[1741477750428,0.6237,2200.3,2199.9,0.00681989]
[1741477755233,0.6192,2200.2,2199.9,0.00681989]
[1741477755635,3.2078,2200.0,2199.1,3.2078]
[1741477755836,3.2078,2199.7,2199.1,3.2078]
[1741477756033,0.6192,2199.6,2199.1,3.2078]
[1741477756537,0.6304,2199.5,2199.1,3.75356]
[1741477756937,0.6304,2199.5,2199.1,3.76037989]
[1741477757536,0.6304,2199.5,2199.1,3.21461989]
[1741477757933,0.6192,2199.6,2199.1,3.21461989]
[1741477758333,0.6192,2199.6,2199.3,0.54571]
[1741477758535,0.6192,2199.6,2199.1,3.21461989]
[1741477759536,0.6192,2199.6,2199.2,0.54574]
[1741477759944,0.6192,2199.6,2199.2,0.54572]
[1741477760741,3.2078,2200.0,2199.1,3.21461989]
[1741477761041,0.09090495,2200.1,2199.7,3.2078]
[1741477761246,0.09090495,2200.1,2199.7,5.01942]
[1741477761442,0.09090495,2200.1,2199.7,4.4738]
[1741477768061,0.09090495,2200.1,2199.7,3.8239]
[1741477768355,0.09090495,2200.1,2199.7,3.2078]
[1741477768762,0.09090495,2200.1,2199.5,1.981]
[1741477769058,0.09090495,2200.1,2199.5,2.52666]
[1741477770053,0.09090495,2200.1,2199.5,1.981]
[1741477770554,0.09090495,2200.1,2199.8,0.54559]
[1741477770860,0.09090495,2200.1,2200.0,0.54555]
[1741477772263,1.2634,2200.7,2200.2,0.5455]
[1741477772462,1.2634,2200.7,2200.2,3.7533]
[1741477772763,0.6176,2200.7,2200.2,3.7533]
[1741477773263,0.6176,2200.7,2200.2,3.2078]
[1741477773457,0.6176,2200.7,2200.2,3.7533]
[1741477775656,0.6176,2200.7,2200.2,3.2078]
[1741477775856,0.6058,2200.6,2200.2,3.2078]